fUST/lending_fUST_20260530
["ID","MTS","AMOUNT","RATE_DAILY","PERIOD"]
[423409424,1780086654000,-739.95,0.00015654,2]
[423409414,1780086654000,-500.0,0.00015652,2]
[423409432,1780086654000,-992.15,0.00015753,2]
[423409441,1780086654000,-386.13,0.00015926,2]
[423409427,1780086654000,-1099.4086,0.00015654,2]
[423409425,1780086654000,-593.57,0.00015654,2]
[423409426,1780086654000,-680.05,0.00015654,2]
[423409430,1780086654000,-12161.88,0.00015752,2]
[423409429,1780086654000,-513.74,0.00015752,2]
[423409431,1780086654000,-2688.69,0.00015752,2]
[423409428,1780086654000,-1566.91,0.00015752,2]
[423409435,1780086654000,-766.88,0.00015753,2]
[423409445,1780086654000,-500.0,0.00015926,2]
[423409446,1780086654000,-532.03,0.00015927,2]
[423409434,1780086654000,-652.94,0.00015753,2]
[423409443,1780086654000,-194.05,0.00015926,2]
[423409411,1780086654000,-650.58,0.00015606,2]
[423409433,1780086654000,-674.75,0.00015753,2]
[423409412,1780086654000,-500.0,0.00015652,2]
[423409383,1780086654000,-881.34,0.0001538,2]
[423409419,1780086654000,-1898.52,0.00015654,2]
[423409381,1780086654000,-2157.38,0.0001538,2]
[423409380,1780086654000,-500.0,0.0001538,2]
[423409384,1780086654000,-739.95,0.0001538,2]
[423409393,1780086654000,-513.74,0.00015478,2]
[423409385,1780086654000,-593.57,0.0001538,2]
[423409382,1780086654000,-500.0,0.0001538,2]
[423409444,1780086654000,-623.57,0.00015926,2]
[423409389,1780086654000,-443.0,0.00015426,2]
[423409386,1780086654000,-680.05,0.0001538,2]
[423409387,1780086654000,-1099.4086,0.0001538,2]
[423409392,1780086654000,-1566.91,0.00015478,2]
[423409390,1780086654000,-198.046,0.00015426,2]
[423409388,1780086654000,-2204.0,0.00015426,2]
[423409420,1780086654000,-500.0,0.00015654,2]
[423409394,1780086654000,-12161.88,0.00015478,2]
[423409397,1780086654000,-674.75,0.00015479,2]
[423409396,1780086654000,-992.15,0.00015479,2]
[423409405,1780086654000,-1562.39,0.00015606,2]
[423409399,1780086654000,-766.88,0.00015479,2]
[423409398,1780086654000,-652.94,0.00015479,2]
[423409406,1780086654000,-557.94,0.00015606,2]
[423409401,1780086654000,-1631.26,0.00015479,2]
[423409403,1780086654000,-996.95663277,0.000156,2]
[423409400,1780086654000,-2304.8,0.00015479,2]
[423409404,1780086654000,-693.89,0.00015606,2]
[423409402,1780086654000,-257.018086,0.00015592,2]
[423409408,1780086654000,-622.85,0.00015606,2]
[423409418,1780086654000,-525.99,0.00015653,2]
[423409395,1780086654000,-2688.69,0.00015478,2]
[423409439,1780086654000,-3204.31991728,0.00015885,2]
[423409391,1780086654000,-1411.0,0.00015426,2]
[423409442,1780086654000,-500.0,0.00015926,2]
[423409479,1780086654000,-881.34,0.00016202,2]
[423409475,1780086654000,-1898.52,0.00016202,2]
[423409480,1780086654000,-739.95,0.00016202,2]
[423409481,1780086654000,-593.57,0.00016202,2]
[423409478,1780086654000,-500.0,0.00016202,2]
[423409477,1780086654000,-2157.38,0.00016202,2]
[423409484,1780086654000,-151.0,0.00016251,2]
[423409492,1780086654000,-1566.99,0.00016299,2]
[423409483,1780086654000,-1099.4086,0.00016202,2]
[423409493,1780086654000,-513.82,0.00016299,2]
[423409494,1780086654000,-12161.93317743,0.00016299,2]
[423409485,1780086654000,-500.0,0.00016251,2]
[423409486,1780086654000,-162.380719,0.00016251,2]
[423409473,1780086654000,-532.03,0.00016201,2]
[423409495,1780086654000,-2688.79,0.00016299,2]
[423409488,1780086654000,-537.6845,0.00016251,2]
[423409489,1780086654000,-156.78401659,0.00016251,2]
[423409491,1780086654000,-316.73276992,0.00016251,2]
[423409496,1780086654000,-992.22,0.00016301,2]
[423409501,1780086654000,-1631.46,0.00016301,2]
[423409500,1780086654000,-2304.93,0.00016301,2]
[423409499,1780086654000,-767.0,0.00016301,2]
[423409498,1780086654000,-653.07,0.00016301,2]
[423409497,1780086654000,-674.83,0.00016301,2]
[423409502,1780086654000,-151.0,0.00016437,2]
[423409503,1780086654000,-151.0,0.00016465,2]
[423409504,1780086654000,-500.0,0.00016474,2]
[423409436,1780086654000,-2304.8,0.00015753,2]
[423409487,1780086654000,-151.0,0.00016251,2]
[423409472,1780086654000,-497.3,0.000162,2]
[423409490,1780086654000,-210.08344815,0.00016251,2]
[423409476,1780086654000,-500.0,0.00016202,2]
[423409482,1780086654000,-680.05,0.00016202,2]
[423409440,1780086654000,-996.95663277,0.000159,2]
[423409437,1780086654000,-1631.26,0.00015753,2]
[423409438,1780086654000,-996.95663277,0.000158,2]
[423409447,1780086654000,-525.99,0.00015927,2]
[423409456,1780086654000,-1099.4086,0.00015928,2]
[423409453,1780086654000,-739.95,0.00015928,2]
[423409451,1780086654000,-500.0,0.00015928,2]
[423409449,1780086654000,-500.0,0.00015928,2]
[423409457,1780086654000,-228.312322,0.00015929,2]
[423409450,1780086654000,-2157.38,0.00015928,2]
[423409452,1780086654000,-881.34,0.00015928,2]
[423409455,1780086654000,-680.05,0.00015928,2]
[423409459,1780086654000,-1566.91,0.00016026,2]
[423409454,1780086654000,-593.57,0.00015928,2]
[423409458,1780086654000,-2018.37630889,0.00015969,45]
[423409474,1780086654000,-525.99,0.00016201,2]
[423409448,1780086654000,-1898.52,0.00015928,2]
[423409470,1780086654000,-996.95663277,0.000162,2]
[423409469,1780086654000,-996.95663277,0.000161,2]
[423409471,1780086654000,-500.0,0.000162,2]
[423409465,1780086654000,-652.94,0.00016027,2]
[423409464,1780086654000,-674.75,0.00016027,2]
[423409467,1780086654000,-2304.8,0.00016027,2]
[423409466,1780086654000,-766.88,0.00016027,2]
[423409463,1780086654000,-992.15,0.00016027,2]
[423409461,1780086654000,-12161.88,0.00016026,2]
[423409462,1780086654000,-2688.69,0.00016026,2]
[423409460,1780086654000,-513.74,0.00016026,2]
[423409468,1780086654000,-1631.26,0.00016027,2]
[423409530,1780086655000,-500.0,0.00016799,2]
[423409546,1780086655000,-395.82102964,0.00017078,5]
[423409527,1780086655000,-593.57,0.0001675,2]
[423409525,1780086655000,-881.34,0.0001675,2]
[423409529,1780086655000,-1099.4086,0.0001675,2]
[423409526,1780086655000,-739.95,0.0001675,2]
[423409528,1780086655000,-680.05,0.0001675,2]
[423409534,1780086655000,-500.0,0.00017022,2]
[423409545,1780086655000,-333.66964069,0.00017035,2]
[423409541,1780086655000,-739.95,0.00017024,2]
[423409533,1780086655000,-791.0,0.00016812,2]
[423409543,1780086655000,-680.05,0.00017024,2]
[423409540,1780086655000,-881.34,0.00017024,2]
[423409535,1780086655000,-532.03,0.00017023,2]
[423409542,1780086655000,-593.57,0.00017024,2]
[423409536,1780086655000,-525.99,0.00017023,2]
[423409532,1780086655000,-1000.0,0.00016812,2]
[423409539,1780086655000,-2157.38,0.00017024,2]
[423409544,1780086655000,-1099.4086,0.00017024,2]
[423409521,1780086655000,-525.99,0.00016749,2]
[423409519,1780086655000,-500.0,0.00016748,2]
[423409531,1780086655000,-537.6845,0.00016799,2]
[423409538,1780086655000,-500.0,0.00017024,2]
[423409507,1780086655000,-1898.52,0.00016476,2]
[423409505,1780086655000,-532.03,0.00016475,2]
[423409506,1780086655000,-525.99,0.00016475,2]
[423409509,1780086655000,-2157.38,0.00016476,2]
[423409517,1780086655000,-2021.71325497,0.00016601,68]
[423409508,1780086655000,-500.0,0.00016476,2]
[423409518,1780086655000,-4740.61508572,0.00016744,2]
[423409523,1780086655000,-500.0,0.0001675,2]
[423409512,1780086655000,-739.95,0.00016476,2]
[423409510,1780086655000,-530.51,0.00016476,2]
[423409513,1780086655000,-593.57,0.00016476,2]
[423409516,1780086655000,-317.232,0.00016577,2]
[423409515,1780086655000,-1099.4086,0.00016476,2]
[423409514,1780086655000,-680.05,0.00016476,2]
[423409520,1780086655000,-532.03,0.00016749,2]
[423409522,1780086655000,-1898.52,0.0001675,2]
[423409524,1780086655000,-2157.38,0.0001675,2]
[423409511,1780086655000,-881.34,0.00016476,2]
[423409537,1780086655000,-1898.52,0.00017024,2]
[423409583,1780086655000,-500.0,0.00017895,2]
[423409550,1780086655000,-532.03,0.00017297,2]
[423409567,1780086655000,-740.01,0.00017572,2]
[423409568,1780086655000,-593.8,0.00017572,2]
[423409574,1780086655000,-532.03,0.00017845,2]
[423409577,1780086655000,-2496.5208017,0.00017852,2]
[423409576,1780086655000,-738.0555835,0.00017852,2]
[423409578,1780086655000,-209.7978537,0.00017852,2]
[423409579,1780086655000,-631.4707115,0.00017852,2]
[423409575,1780086655000,-525.99,0.00017845,2]
[423409573,1780086655000,-500.0,0.00017692,7]
[423409584,1780086655000,-500.0,0.00017999,2]
[423409582,1780086655000,-166.945335,0.00017852,2]
[423409580,1780086655000,-166.9453353,0.00017852,2]
[423409586,1780086655000,-570.94827425,0.00017999,8]
[423409585,1780086655000,-500.0,0.00017999,2]
[423409581,1780086655000,-9397.2506451,0.00017852,2]
[423409587,1780086655000,-320229.32479949,0.00018,2]
[423409589,1780086655000,-1274.36,0.00015606,2]
[423409590,1780086655000,-123702.78708672,0.00018,2]
[423409547,1780086655000,-2025.05020106,0.00017233,92]
[423409570,1780086655000,-1099.8346,0.00017572,2]
[423409588,1780086655000,-1274.28,0.00015332,2]
[423409569,1780086655000,-680.19,0.00017572,2]
[423409549,1780086655000,-500.0,0.00017296,2]
[423409563,1780086655000,-525.99,0.00017571,2]
[423409548,1780086655000,-456.830407,0.00017259,2]
[423409558,1780086655000,-680.05,0.00017298,2]
[423409556,1780086655000,-739.95,0.00017298,2]
[423409554,1780086655000,-2157.38,0.00017298,2]
[423409555,1780086655000,-881.34,0.00017298,2]
[423409559,1780086655000,-1099.4086,0.00017298,2]
[423409552,1780086655000,-1898.52,0.00017298,2]
[423409557,1780086655000,-593.57,0.00017298,2]
[423409560,1780086655000,-500.0,0.00017347,2]
[423409561,1780086655000,-342.09,0.0001757,2]
[423409571,1780086655000,-168.3888056,0.0001762,2]
[423409564,1780086655000,-1898.65,0.00017572,2]
[423409572,1780086655000,-886.96254712,0.0001764,2]
[423409562,1780086655000,-532.03,0.00017571,2]
[423409566,1780086655000,-881.57,0.00017572,2]
[423409565,1780086655000,-2157.51,0.00017572,2]
[423409553,1780086655000,-500.0,0.00017298,2]
[423409551,1780086655000,-525.99,0.00017297,2]
[423409607,1780086673000,-500.0,9.304e-05,2]
[423409608,1780086690000,-500.0,9.304e-05,2]
[423409609,1780086707000,-500.0,9.304e-05,2]
[423409611,1780086724000,-271.01926608,9.303e-05,2]
[423409629,1780087123000,5319.17054202,0.00019926,120]
[423409628,1780087123000,5298.98894086,0.00019207,120]
[423409627,1780087123000,5187.16663736,0.00018488,120]
[423409728,1780087832000,-500.0,9.303e-05,2]
[423409738,1780087832000,-500.0,9.303e-05,2]
[423409748,1780087832000,-500.0,9.303e-05,2]
[423409739,1780087832000,-500.0,9.303e-05,2]
[423409737,1780087832000,-500.0,9.303e-05,2]
[423409749,1780087832000,-500.0,9.303e-05,2]
[423409741,1780087832000,-500.0,9.303e-05,2]
[423409742,1780087832000,-500.0,9.303e-05,2]
[423409740,1780087832000,-500.0,9.303e-05,2]
[423409747,1780087832000,-500.0,9.303e-05,2]
[423409726,1780087832000,-300.0,9.301e-05,2]
[423409743,1780087832000,-500.0,9.303e-05,2]
[423409727,1780087832000,-300.0,9.301e-05,2]
[423409720,1780087832000,-598.6213911,8.517e-05,2]
[423409736,1780087832000,-500.0,9.303e-05,2]
[423409735,1780087832000,-500.0,9.303e-05,2]
[423409734,1780087832000,-500.0,9.303e-05,2]
[423409732,1780087832000,-500.0,9.303e-05,2]
[423409731,1780087832000,-500.0,9.303e-05,2]
[423409730,1780087832000,-500.0,9.303e-05,2]
[423409729,1780087832000,-500.0,9.303e-05,2]
[423409733,1780087832000,-500.0,9.303e-05,2]
[423409725,1780087832000,-1200.0,9.3e-05,2]
[423409722,1780087832000,-202.94362377,8.735e-05,2]
[423409723,1780087832000,-160.566907,9.048e-05,2]
[423409721,1780087832000,-4401.3786089,8.517e-05,2]
[423409744,1780087832000,-500.0,9.303e-05,2]
[423409724,1780087832000,-300.0,9.3e-05,2]
[423409746,1780087832000,-500.0,9.303e-05,2]
[423409752,1780087832000,-500.0,9.303e-05,2]
[423409751,1780087832000,-500.0,9.303e-05,2]
[423409745,1780087832000,-500.0,9.303e-05,2]
[423409777,1780087832000,-300.0,9.489e-05,2]
[423409778,1780087832000,-300.0,9.489e-05,2]
[423409776,1780087832000,-300.0,9.489e-05,2]
[423409773,1780087832000,-273.6,9.488e-05,2]
[423409770,1780087832000,-500.0,9.304e-05,2]
[423409769,1780087832000,-500.0,9.304e-05,2]
[423409774,1780087832000,-203.40018637,9.488e-05,2]
[423409772,1780087832000,-500.0,9.488e-05,2]
[423409771,1780087832000,-500.0,9.304e-05,2]
[423409767,1780087832000,-500.0,9.304e-05,2]
[423409764,1780087832000,-500.0,9.304e-05,2]
[423409766,1780087832000,-500.0,9.304e-05,2]
[423409775,1780087832000,-300.0,9.489e-05,2]
[423409768,1780087832000,-500.0,9.304e-05,2]
[423409760,1780087832000,-456.12,9.304e-05,2]
[423409763,1780087832000,-500.0,9.304e-05,2]
[423409758,1780087832000,-555.57438756,9.303e-05,2]
[423409759,1780087832000,-500.0,9.304e-05,2]
[423409756,1780087832000,-500.0,9.303e-05,2]
[423409757,1780087832000,-500.0,9.303e-05,2]
[423409755,1780087832000,-500.0,9.303e-05,2]
[423409754,1780087832000,-500.0,9.303e-05,2]
[423409750,1780087832000,-500.0,9.303e-05,2]
[423409762,1780087832000,-500.59192622,9.304e-05,2]
[423409753,1780087832000,-492.93133172,9.303e-05,2]
[423409761,1780087832000,-500.0,9.304e-05,2]
[423409765,1780087832000,-500.0,9.304e-05,2]
[423409805,1780087833000,-500.0,9.577e-05,2]
[423409802,1780087833000,-500.0,9.577e-05,2]
[423409799,1780087833000,-500.0,9.577e-05,2]
[423409800,1780087833000,-500.0,9.577e-05,2]
[423409804,1780087833000,-500.0,9.577e-05,2]
[423409795,1780087833000,-500.0,9.575e-05,2]
[423409803,1780087833000,-500.0,9.577e-05,2]
[423409807,1780087833000,-500.0,9.577e-05,2]
[423409811,1780087833000,-500.0,9.577e-05,2]
[423409806,1780087833000,-500.0,9.577e-05,2]
[423409809,1780087833000,-500.0,9.577e-05,2]
[423409810,1780087833000,-500.0,9.577e-05,2]
[423409813,1780087833000,-535.30729941,9.577e-05,2]
[423409823,1780087833000,-500.0,9.578e-05,2]
[423409812,1780087833000,-635.1,9.577e-05,2]
[423409801,1780087833000,-500.0,9.577e-05,2]
[423409808,1780087833000,-500.0,9.577e-05,2]
[423409796,1780087833000,-500.0,9.575e-05,2]
[423409779,1780087833000,-300.0,9.489e-05,2]
[423409797,1780087833000,-500.0,9.575e-05,2]
[423409815,1780087833000,-500.0,9.578e-05,2]
[423409788,1780087833000,-300.0,9.489e-05,2]
[423409780,1780087833000,-300.0,9.489e-05,2]
[423409781,1780087833000,-300.0,9.489e-05,2]
[423409784,1780087833000,-300.0,9.489e-05,2]
[423409782,1780087833000,-300.0,9.489e-05,2]
[423409783,1780087833000,-300.0,9.489e-05,2]
[423409798,1780087833000,-500.0,9.575e-05,2]
[423409785,1780087833000,-300.0,9.489e-05,2]
[423409786,1780087833000,-300.0,9.489e-05,2]
[423409792,1780087833000,-500.0,9.574e-05,2]
[423409791,1780087833000,-500.0,9.574e-05,2]
[423409789,1780087833000,-300.0,9.489e-05,2]
[423409793,1780087833000,-500.0,9.574e-05,2]
[423409794,1780087833000,-500.0,9.575e-05,2]
[423409790,1780087833000,-500.0,9.574e-05,2]
[423409787,1780087833000,-300.0,9.489e-05,2]
[423409814,1780087833000,-500.0,9.578e-05,2]
[423409838,1780087833000,-500.0,9.851e-05,2]
[423409816,1780087833000,-500.0,9.578e-05,2]
[423409841,1780087833000,-500.0,9.851e-05,2]
[423409847,1780087833000,-1090.70435909,9.851e-05,2]
[423409842,1780087833000,-500.0,9.851e-05,2]
[423409845,1780087833000,-500.0,9.851e-05,2]
[423409846,1780087833000,-504.97766839,9.851e-05,2]
[423409843,1780087833000,-500.0,9.851e-05,2]
[423409837,1780087833000,-500.0,9.851e-05,2]
[423409839,1780087833000,-500.0,9.851e-05,2]
[423409844,1780087833000,-500.0,9.851e-05,2]
[423409849,1780087833000,-1090.70435909,9.851e-05,2]
[423409850,1780087833000,-1090.70435909,9.851e-05,2]
[423409851,1780087833000,-1090.70435909,9.851e-05,2]
[423409854,1780087833000,-1090.70435909,9.851e-05,2]
[423409852,1780087833000,-1090.70435909,9.851e-05,2]
[423409817,1780087833000,-500.0,9.578e-05,2]
[423409853,1780087833000,-1090.70435909,9.851e-05,2]
[423409848,1780087833000,-1090.70435909,9.851e-05,2]
[423409840,1780087833000,-500.0,9.851e-05,2]
[423409855,1780087833000,-562.93389946,9.851e-05,2]
[423409836,1780087833000,-500.0,9.851e-05,2]
[423409821,1780087833000,-500.0,9.578e-05,2]
[423409818,1780087833000,-500.0,9.578e-05,2]
[423409819,1780087833000,-500.0,9.578e-05,2]
[423409820,1780087833000,-500.0,9.578e-05,2]
[423409822,1780087833000,-500.0,9.578e-05,2]
[423409825,1780087833000,-285.76917743,9.729e-05,2]
[423409824,1780087833000,-500.0,9.578e-05,2]
[423409835,1780087833000,-500.0,9.851e-05,2]
[423409829,1780087833000,-500.0,9.849e-05,2]
[423409830,1780087833000,-500.0,9.849e-05,2]
[423409828,1780087833000,-500.0,9.849e-05,2]
[423409834,1780087833000,-500.0,9.851e-05,2]
[423409827,1780087833000,-500.0,9.848e-05,2]
[423409826,1780087833000,-500.0,9.762e-05,2]
[423409831,1780087833000,-500.0,9.849e-05,2]
[423409833,1780087833000,-500.0,9.851e-05,2]
[423409832,1780087833000,-500.0,9.849e-05,2]
[423409860,1780087840000,-5000.0,9.211e-05,2]
[423409861,1780087840000,-527.77045963,9.851e-05,2]
[423409864,1780087840000,-1090.70435909,9.851e-05,2]
[423409862,1780087840000,-1090.70435909,9.851e-05,2]
[423409863,1780087840000,-1090.70435909,9.851e-05,2]
[423409900,1780087841000,-500.0,0.00010125,2]
[423409896,1780087841000,-500.0,0.00010123,2]
[423409906,1780087841000,-640.01,0.00010125,2]
[423409902,1780087841000,-500.0,0.00010125,2]
[423409905,1780087841000,-500.0,0.00010125,2]
[423409920,1780087841000,-481.15,0.0001031,2]
[423409903,1780087841000,-500.0,0.00010125,2]
[423409904,1780087841000,-500.0,0.00010125,2]
[423409908,1780087841000,-500.0,0.00010125,2]
[423409907,1780087841000,-500.0,0.00010125,2]
[423409901,1780087841000,-500.0,0.00010125,2]
[423409910,1780087841000,-500.0,0.00010126,2]
[423409909,1780087841000,-500.0,0.00010125,2]
[423409922,1780087841000,-500.0,0.00010397,2]
[423409911,1780087841000,-500.0,0.00010126,2]
[423409912,1780087841000,-500.0,0.00010126,2]
[423409914,1780087841000,-500.0,0.00010126,2]
[423409917,1780087841000,-462.46,0.00010126,2]
[423409916,1780087841000,-500.0,0.00010126,2]
[423409918,1780087841000,-1531.0,0.0001023,2]
[423409919,1780087841000,-300.0,0.00010231,2]
[423409915,1780087841000,-500.0,0.00010126,2]
[423409926,1780087841000,-500.0,0.00010397,2]
[423409924,1780087841000,-500.0,0.00010397,2]
[423409934,1780087841000,-500.0,0.00010399,2]
[423409923,1780087841000,-500.0,0.00010397,2]
[423409925,1780087841000,-500.0,0.00010397,2]
[423409898,1780087841000,-500.0,0.00010125,2]
[423409913,1780087841000,-500.0,0.00010126,2]
[423409899,1780087841000,-500.0,0.00010125,2]
[423409872,1780087841000,-1145.23957705,9.851e-05,2]
[423409897,1780087841000,-500.0,0.00010123,2]
[423409931,1780087841000,-500.0,0.00010399,2]
[423409865,1780087841000,-1090.70435909,9.851e-05,2]
[423409866,1780087841000,-1090.70435909,9.851e-05,2]
[423409867,1780087841000,-1090.70435909,9.851e-05,2]
[423409868,1780087841000,-1090.70435909,9.851e-05,2]
[423409877,1780087841000,-1145.23957705,9.851e-05,2]
[423409875,1780087841000,-1145.23957705,9.851e-05,2]
[423409873,1780087841000,-1145.23957705,9.851e-05,2]
[423409878,1780087841000,-1145.23957705,9.851e-05,2]
[423409879,1780087841000,-1145.23957705,9.851e-05,2]
[423409871,1780087841000,-1145.23957705,9.851e-05,2]
[423409869,1780087841000,-1090.70435909,9.851e-05,2]
[423409870,1780087841000,-1090.70435909,9.851e-05,2]
[423409874,1780087841000,-1145.23957705,9.851e-05,2]
[423409876,1780087841000,-1145.23957705,9.851e-05,2]
[423409881,1780087841000,-500.0,9.852e-05,2]
[423409880,1780087841000,-548.89,9.852e-05,2]
[423409883,1780087841000,-500.0,9.852e-05,2]
[423409882,1780087841000,-500.0,9.852e-05,2]
[423409884,1780087841000,-500.0,9.852e-05,2]
[423409890,1780087841000,-500.0,0.00010036,2]
[423409887,1780087841000,-500.0,9.852e-05,2]
[423409886,1780087841000,-500.0,9.852e-05,2]
[423409885,1780087841000,-500.0,9.852e-05,2]
[423409888,1780087841000,-500.0,9.852e-05,2]
[423409889,1780087841000,-500.0,9.852e-05,2]
[423409892,1780087841000,-608.0,0.00010122,2]
[423409893,1780087841000,-500.0,0.00010123,2]
[423409894,1780087841000,-500.0,0.00010123,2]
[423409895,1780087841000,-500.0,0.00010123,2]
[423409928,1780087841000,-500.0,0.00010399,2]
[423409891,1780087841000,-600.0,0.00010047,2]
[423409932,1780087841000,-500.0,0.00010399,2]
[423409966,1780087841000,-500.0,0.00010947,2]
[423409967,1780087841000,-500.0,0.00010947,2]
[423409965,1780087841000,-500.0,0.00010947,2]
[423409968,1780087841000,-500.0,0.00010947,2]
[423409969,1780087841000,-500.0,0.00010947,2]
[423409970,1780087841000,-500.0,0.00010947,2]
[423409971,1780087841000,-500.0,0.00010948,2]
[423409972,1780087841000,-500.0,0.00010948,2]
[423409973,1780087841000,-500.0,0.00010948,2]
[423409975,1780087841000,-500.0,0.00010948,2]
[423409977,1780087841000,-637.38,0.00011219,2]
[423409976,1780087841000,-720.0,0.00011052,2]
[423409978,1780087841000,-500.0,0.00011219,2]
[423409981,1780087841000,-238.16375513,0.00011221,2]
[423409983,1780087841000,-232.12,0.00011221,2]
[423409974,1780087841000,-500.0,0.00010948,2]
[423409979,1780087841000,-500.0,0.00011219,2]
[423409980,1780087841000,-500.0,0.00011219,2]
[423409982,1780087841000,-520.32,0.00011221,2]
[423409985,1780087841000,-500.0,0.00011221,2]
[423409984,1780087841000,-500.0,0.00011221,2]
[423409987,1780087841000,-500.0,0.00011222,2]
[423409986,1780087841000,-348.51,0.00011222,2]
[423409991,1780087841000,-500.0,0.00011493,2]
[423409988,1780087841000,-500.0,0.00011222,2]
[423409989,1780087841000,-250.0,0.00011367,2]
[423409990,1780087841000,-170.83989548,0.00011396,2]
[423409992,1780087841000,-500.0,0.00011493,2]
[423409993,1780087841000,-500.0,0.00011493,2]
[423409963,1780087841000,-500.0,0.00010945,2]
[423409964,1780087841000,-500.0,0.00010945,2]
[423409929,1780087841000,-201.15247983,0.00010399,2]
[423409962,1780087841000,-500.0,0.00010945,2]
[423409960,1780087841000,-239.47347605,0.00010735,2]
[423409930,1780087841000,-500.0,0.00010399,2]
[423409927,1780087841000,-500.0,0.00010399,2]
[423409933,1780087841000,-500.0,0.00010399,2]
[423409936,1780087841000,-500.0,0.000104,2]
[423409935,1780087841000,-500.0,0.00010399,2]
[423409948,1780087841000,-500.0,0.00010673,2]
[423409938,1780087841000,-500.0,0.000104,2]
[423409940,1780087841000,-500.0,0.000104,2]
[423409939,1780087841000,-500.0,0.000104,2]
[423409943,1780087841000,-496.74,0.00010671,2]
[423409945,1780087841000,-500.0,0.00010671,2]
[423409942,1780087841000,-500.0,0.000104,2]
[423409946,1780087841000,-500.0,0.00010671,2]
[423409937,1780087841000,-389.96272982,0.000104,2]
[423409941,1780087841000,-500.0,0.000104,2]
[423409947,1780087841000,-500.0,0.00010671,2]
[423409957,1780087841000,-500.0,0.00010674,2]
[423409958,1780087841000,-500.0,0.00010674,2]
[423409959,1780087841000,-500.0,0.00010674,2]
[423409956,1780087841000,-500.0,0.00010674,2]
[423409953,1780087841000,-500.0,0.00010673,2]
[423409955,1780087841000,-500.0,0.00010674,2]
[423409961,1780087841000,-500.0,0.00010945,2]
[423409952,1780087841000,-283.08953976,0.00010673,2]
[423409950,1780087841000,-500.0,0.00010673,2]
[423409951,1780087841000,-500.0,0.00010673,2]
[423409949,1780087841000,-500.0,0.00010673,2]
[423409944,1780087841000,-500.0,0.00010671,2]
[423409954,1780087841000,-500.0,0.00010673,2]
[423410033,1780087842000,-500.0,0.00013685,2]
[423410038,1780087842000,-160.1874155,0.000141,2]
[423410037,1780087842000,-1839.55033054,0.000141,2]
[423410034,1780087842000,-198.524462,0.00013699,2]
[423410031,1780087842000,-500.0,0.00013411,2]
[423410024,1780087842000,-500.0,0.00012865,2]
[423410027,1780087842000,-361.1,0.00013139,2]
[423410030,1780087842000,-500.0,0.00013411,2]
[423410028,1780087842000,-170.83989547,0.00013272,2]
[423410029,1780087842000,-1000.0,0.00013373,2]
[423410026,1780087842000,-500.0,0.00013137,2]
[423410040,1780087842000,-160.0,0.00014103,2]
[423410032,1780087842000,-512.4,0.00013685,2]
[423410041,1780087842000,-767.15540412,0.00014103,2]
[423410054,1780087842000,-160.1874155,0.000147,2]
[423410049,1780087842000,-1839.55033054,0.000145,2]
[423410042,1780087842000,-160.0,0.00014103,2]
[423410043,1780087842000,-4598.94322887,0.00014175,2]
[423410044,1780087842000,-1839.55033054,0.000142,2]
[423410046,1780087842000,-500.0,0.00014233,2]
[423410048,1780087842000,-160.1874155,0.000144,2]
[423410047,1780087842000,-1839.55033054,0.000144,2]
[423410045,1780087842000,-160.1874155,0.000142,2]